[Event "Gibraltar Masters 18th"]
[Site "Gibraltar"]
[Date "2020.01.21"]
[Round "1.57"]
[White "Priyanka, Nutakki"]
[Black "Gukesh, Dommaraju"]
[Result "1/2-1/2"]
[ECO "A26"]
[WhiteElo "2242"]
[BlackElo "2542"]
[PlyCount "91"]
[EventDate "2020.01.21"]
[EventType "swiss"]
[EventRounds "10"]
[EventCountry "GGB"]
[SourceTitle "BritBase"]
[Source "John Saunders"]
[SourceDate "2021.06.05"]
[SourceVersion "1"]
[SourceVersionDate "2021.06.05"]
[SourceQuality "1"]
[TimeControl "40/100:0"]

1. c4 {[%emt 0:56:53]} Nf6 {[%emt 0:00:24]} 2. Nc3 {[%emt 0:00:08]} g6 {
[%emt 0:00:24]} 3. g3 {[%emt 0:00:19]} Bg7 {[%emt 0:00:26]} 4. Bg2 {[%emt 0:00:
15]} O-O {[%emt 0:00:10]} 5. Nf3 {[%emt 0:00:09]} d6 {[%emt 0:00:41]} 6. O-O {
[%emt 0:00:13]} e5 {[%emt 0:00:44]} 7. d3 {[%emt 0:00:14]} Re8 {[%emt 0:02:34]}
8. Rb1 {[%emt 0:02:43]} a5 {[%emt 0:04:29]} 9. a3 {[%emt 0:01:22]} Nc6 {
[%emt 0:03:28]} 10. Nd2 {[%emt 0:09:36]} Bg4 {[%emt 0:23:05]} 11. b4 {[%emt 0:
04:39]} axb4 {[%emt 0:04:22]} 12. axb4 {[%emt 0:00:15]} Qc8 {[%emt 0:00:25]}
13. Re1 {[%emt 0:03:33]} h6 {[%emt 0:14:35]} 14. b5 {[%emt 0:04:44]} Nd4 {
[%emt 0:00:13]} 15. Bb2 {[%emt 0:00:25]} h5 {[%emt 0:04:15]} 16. Nde4 {[%emt 0:
04:33]} Nxe4 {[%emt 0:00:52]} 17. Nxe4 {[%emt 0:01:02]} Qd7 {[%emt 0:01:36]}
18. f3 {[%emt 0:07:35]} Bf5 {[%emt 0:06:03]} 19. Nf2 {[%emt 0:08:51]} Be6 20.
e3 {[%emt 0:04:33]} Nf5 {[%emt 0:00:02]} 21. f4 {[%emt 0:00:25]} exf4 {[%emt 0:
04:55]} 22. gxf4 {[%emt 0:01:31]} Bxb2 {[%emt 0:05:44]} 23. Rxb2 {[%emt 0:00:
03]} c6 {[%emt 0:04:24]} 24. e4 {[%emt 0:07:35]} Nh4 {[%emt 0:00:57]} 25. f5 {
[%emt 0:01:26]} gxf5 {[%emt 0:00:53]} 26. Qxh5 {[%emt 0:01:29]} Ng6 {[%emt 0:
00:45]} 27. bxc6 {[%emt 0:09:00]} bxc6 {[%emt 0:00:06]} 28. Reb1 {[%emt 0:05:
09]} Ra5 {[%emt 0:07:21]} 29. d4 {[%emt 0:07:16]} Qd8 {[%emt 0:03:56]} 30. d5 {
[%emt 0:01:46]} fxe4 {[%emt 0:05:15]} 31. Bxe4 {[%emt 0:04:12]} Qf6 {[%emt 0:
00:31]} 32. Rb8 {[%emt 0:01:39]} Bd7 {[%emt 0:01:23]} 33. Bf5 {[%emt 0:05:00]}
Ra1 {[%emt 0:01:47]} 34. Rxe8+ {[%emt 0:03:25]} Bxe8 {[%emt 0:00:02]} 35. Rxa1
{[%emt 0:04:15]} Qxa1+ {[%emt 0:00:02]} 36. Qd1 {[%emt 0:00:05]} Qc3 {[%emt 0:
03:46]} 37. Bxg6 {[%emt 0:02:56]} fxg6 {[%emt 0:00:07]} 38. Qe2 {[%emt 0:00:55]
} Kf8 {[%emt 0:01:40]} 39. Ne4 {[%emt 0:03:19]} Qe5 {[%emt 0:01:21]} 40. Qf3+ {
[%emt 0:03:16]} Ke7 {[%emt 0:00:48]} 41. Qd3 {[%emt 0:07:48]} c5 {[%emt 0:10:
34]} 42. Kg2 {[%emt 0:03:00]} Bd7 {[%emt 0:02:42]} 43. Ng3 {[%emt 0:02:36]}
Qb2+ {[%emt 0:01:31]} 44. Kf3 {[%emt 0:01:09]} Kf7 {[%emt 0:08:02]} 45. Qe3 {
[%emt 0:05:11]} Qf6+ {[%emt 0:10:19]} 46. Ke4 {[%emt 0:00:57]} 1/2-1/2

[Event "Gibraltar Masters 18th"]
[Site "Gibraltar"]
[Date "2020.01.22"]
[Round "2.1"]
[White "Mamedyarov, Shakhriyar"]
[Black "Gordon, Stephen J"]
[Result "1-0"]
[ECO "D38"]
[WhiteElo "2770"]
[BlackElo "2504"]
[PlyCount "109"]
[EventDate "2020.01.21"]
[EventType "swiss"]
[EventRounds "10"]
[EventCountry "GGB"]
[SourceTitle "BritBase"]
[Source "John Saunders"]
[SourceDate "2021.06.05"]
[SourceVersion "1"]
[SourceVersionDate "2021.06.05"]
[SourceQuality "1"]
[TimeControl "40/100:0"]
[WhiteClock "0:11:18"]
[BlackClock "0:21:12"]

1. d4 {[%emt 0:00:00]} Nf6 {[%emt 0:00:00]} 2. c4 {[%emt 0:00:00]} e6 {[%emt 0:
00:00]} 3. Nf3 {[%emt 0:00:00]} d5 {[%emt 0:00:00]} 4. Nc3 {[%emt 0:00:00]} Bb4
{[%emt 0:00:00]} 5. Bg5 {[%emt 0:00:00]} h6 {[%emt 0:00:00]} 6. Bxf6 {[%emt 0:
00:00]} Qxf6 {[%emt 0:00:00]} 7. e3 {[%emt 0:00:00]} O-O {[%emt 0:00:00]} 8.
Be2 {[%emt 0:00:00]} dxc4 {[%emt 0:00:00]} 9. O-O {[%emt 0:00:00]} c5 {[%emt 0:
00:00]} 10. Ne4 {[%emt 0:00:00]} Qe7 {[%emt 0:00:00]} 11. a3 {[%emt 0:00:00]}
cxd4 {[%emt 0:00:00]} 12. Qxd4 {[%emt 0:00:00]} Ba5 {[%emt 0:00:00]} 13. Qxc4 {
[%emt 0:00:00]} Bd7 {[%emt 0:00:00]} 14. Qc5 {[%emt 0:00:00]} Nc6 {[%emt 0:00:
00]} 15. Qxe7 {[%emt 0:00:00]} Nxe7 {[%emt 0:00:00]} 16. Nc5 {[%emt 0:00:00]}
Bc6 {[%emt 0:00:00]} 17. Ne5 {[%emt 0:00:00]} Bb6 {[%emt 0:00:00]} 18. Nxc6 {
[%emt 0:00:00]} Bxc5 {[%emt 0:00:00]} 19. Na5 {[%emt 0:00:00]} b6 {[%emt 0:00:
00]} 20. Nc4 {[%emt 0:00:00]} Rfd8 {[%emt 0:00:00]} 21. b4 {[%emt 0:00:00]} Bd6
{[%emt 0:00:00]} 22. Rac1 {[%emt 0:00:00]} Nd5 {[%emt 0:00:00]} 23. g3 {
[%emt 0:00:00]} Bf8 {[%emt 0:00:00]} 24. Rc2 {[%emt 0:00:00]} Rac8 {[%emt 0:00:
00]} 25. Rfc1 {[%emt 0:00:00]} g6 {[%emt 0:00:00]} 26. e4 {[%emt 0:00:00]} Nf6
{[%emt 0:00:00]} 27. f3 {[%emt 0:00:00]} Nd7 {[%emt 0:00:00]} 28. Kg2 {[%emt 0:
00:00]} Nb8 {[%emt 0:00:00]} 29. f4 {[%emt 0:00:00]} Rc7 {[%emt 0:00:00]} 30.
Ne5 {[%emt 0:00:00]} Rxc2 {[%emt 0:00:00]} 31. Rxc2 {[%emt 0:00:00]} Bd6 {
[%emt 0:00:00]} 32. Ng4 {[%emt 0:00:00]} Kg7 {[%emt 0:00:00]} 33. e5 {[%emt 0:
00:00]} Be7 {[%emt 0:00:00]} 34. Nf2 {[%emt 0:00:00]} a5 {[%emt 0:00:00]} 35.
Rc7 {[%emt 0:00:00]} Rd7 {[%emt 0:00:00]} 36. Rc8 {[%emt 0:00:00]} Rd8 {
[%emt 0:00:00]} 37. Rxd8 {[%emt 0:00:00]} Bxd8 {[%emt 0:00:00]} 38. bxa5 {
[%emt 0:00:00]} bxa5 {[%emt 0:00:00]} 39. Bb5 {[%emt 0:00:00]} f6 {[%emt 0:00:
00]} 40. Nd3 {[%emt 0:00:00]} Bb6 {[%emt 0:00:00]} 41. exf6+ {[%emt 0:00:17]}
Kxf6 {[%emt 0:00:51]} 42. a4 {[%emt 0:01:08]} g5 {[%emt 0:01:57]} 43. Kf3 {
[%emt 0:01:18]} Kf5 {[%emt 0:00:00]} 44. h3 {[%emt 0:00:00]} Bc7 {[%emt 0:00:
00]} 45. fxg5 {[%emt 0:00:00]} Kxg5 {[%emt 0:00:00]} 46. Nf2 {[%emt 0:00:00]}
Kf5 {[%emt 0:00:00]} 47. h4 {[%emt 0:00:00]} Kf6 {[%emt 0:00:00]} 48. h5 {
[%emt 0:00:00]} Bb6 {[%emt 0:00:00]} 49. Ng4+ {[%emt 0:00:00]} Kg5 {[%emt 0:00:
00]} 50. Ne5 {[%emt 0:00:00]} Bc7 {[%emt 0:00:00]} 51. Ng6 {[%emt 0:00:00]} e5
{[%emt 0:00:00]} 52. Ke4 {[%emt 0:00:00]} Kg4 {[%emt 0:00:00]} 53. Nxe5+ {
[%emt 0:00:00]} Kxg3 {[%emt 0:00:00]} 54. Kf5 {[%emt 0:00:00]} Kh4 {[%emt 0:00:
00]} 55. Ng6+ {[%emt 0:00:00]} 1-0

[Event "Gibraltar Masters 18th"]
[Site "Gibraltar"]
[Date "2020.01.22"]
[Round "2.2"]
[White "Flom, Gabriel"]
[Black "Vachier-Lagrave, Maxime"]
[Result "1/2-1/2"]
[ECO "D85"]
[WhiteElo "2510"]
[BlackElo "2770"]
[PlyCount "105"]
[EventDate "2020.01.21"]
[EventType "swiss"]
[EventRounds "10"]
[EventCountry "GGB"]
[SourceTitle "BritBase"]
[Source "John Saunders"]
[SourceDate "2021.06.05"]
[SourceVersion "1"]
[SourceVersionDate "2021.06.05"]
[SourceQuality "1"]
[TimeControl "40/100:0"]
[WhiteClock "0:29:22"]
[BlackClock "0:44:12"]

1. d4 {[%emt 0:00:00]} Nf6 {[%emt 0:00:00]} 2. c4 {[%emt 0:00:00]} g6 {[%emt 0:
00:00]} 3. Nc3 {[%emt 0:00:00]} d5 {[%emt 0:00:00]} 4. cxd5 {[%emt 0:00:00]}
Nxd5 {[%emt 0:00:00]} 5. e4 {[%emt 0:00:00]} Nxc3 {[%emt 0:00:00]} 6. bxc3 {
[%emt 0:00:00]} Bg7 {[%emt 0:00:00]} 7. Nf3 {[%emt 0:00:00]} c5 {[%emt 0:00:00]
} 8. Be3 {[%emt 0:00:00]} Qa5 {[%emt 0:00:00]} 9. Qd2 {[%emt 0:00:00]} Nc6 {
[%emt 0:00:00]} 10. Rb1 {[%emt 0:00:00]} a6 {[%emt 0:00:00]} 11. Rc1 {[%emt 0:
00:00]} cxd4 {[%emt 0:00:00]} 12. cxd4 {[%emt 0:00:00]} Qxd2+ {[%emt 0:00:00]}
13. Kxd2 {[%emt 0:00:00]} e6 {[%emt 0:00:00]} 14. Bd3 {[%emt 0:00:00]} O-O {
[%emt 0:00:00]} 15. e5 {[%emt 0:00:00]} h6 {[%emt 0:00:00]} 16. h4 {[%emt 0:00:
00]} Rd8 {[%emt 0:00:00]} 17. h5 {[%emt 0:00:00]} g5 {[%emt 0:00:00]} 18. Nxg5
{[%emt 0:00:00]} Nxd4 {[%emt 0:00:00]} 19. Nf3 {[%emt 0:00:00]} Nxf3+ {[%emt 0:
00:00]} 20. gxf3 {[%emt 0:00:00]} Bd7 {[%emt 0:00:00]} 21. Rhg1 {[%emt 0:00:00]
} Bb5 {[%emt 0:00:00]} 22. Rc3 {[%emt 0:00:00]} Kh8 {[%emt 0:00:00]} 23. f4 {
[%emt 0:00:00]} Rd5 {[%emt 0:00:00]} 24. Kc2 {[%emt 0:00:00]} Bxd3+ {[%emt 0:
00:00]} 25. Rxd3 {[%emt 0:00:00]} Rc8+ {[%emt 0:00:00]} 26. Kd2 {[%emt 0:00:00]
} Rcd8 {[%emt 0:00:00]} 27. Rxd5 {[%emt 0:00:00]} Rxd5+ {[%emt 0:00:00]} 28.
Kc2 {[%emt 0:00:00]} f6 {[%emt 0:00:00]} 29. Rg6 {[%emt 0:00:00]} fxe5 {
[%emt 0:00:00]} 30. fxe5 {[%emt 0:00:00]} Bxe5 {[%emt 0:00:00]} 31. Rxh6+ {
[%emt 0:00:00]} Kg8 {[%emt 0:00:00]} 32. Rxe6 {[%emt 0:00:00]} Bd4 {[%emt 0:00:
00]} 33. Rg6+ {[%emt 0:00:00]} Kh7 {[%emt 0:00:00]} 34. Bxd4 {[%emt 0:00:00]}
Rxd4 {[%emt 0:00:00]} 35. Rb6 {[%emt 0:00:00]} Rf4 {[%emt 0:00:00]} 36. Rxb7+ {
[%emt 0:00:00]} Kh8 {[%emt 0:00:00]} 37. Kb3 {[%emt 0:00:00]} Rxf2 {[%emt 0:00:
00]} 38. a4 {[%emt 0:00:00]} a5 {[%emt 0:00:00]} 39. Rb5 {[%emt 0:00:00]} Rf3+
{[%emt 0:00:00]} 40. Kc2 {[%emt 0:00:00]} Rf4 {[%emt 0:00:00]} 41. Rxa5 {
[%emt 0:00:00]} Kh7 {[%emt 0:00:00]} 42. Ra6 {[%emt 0:00:00]} Rf2+ {[%emt 0:00:
00]} 43. Kd3 {[%emt 0:00:00]} Rf4 {[%emt 0:00:00]} 44. Ke3 {[%emt 0:00:00]} Rb4
{[%emt 0:00:00]} 45. a5 {[%emt 0:00:00]} Rb5 {[%emt 0:00:00]} 46. Ra7+ {
[%emt 0:00:00]} Kh6 {[%emt 0:00:00]} 47. a6 {[%emt 0:00:00]} Rb6 {[%emt 0:00:
00]} 48. Ra8 {[%emt 0:00:00]} Kh7 {[%emt 0:00:00]} 49. Kd4 {[%emt 0:00:00]} Kg7
{[%emt 0:00:00]} 50. Ke5 {[%emt 0:00:00]} Rc6 {[%emt 0:00:00]} 51. Kd5 {
[%emt 0:00:00]} Rf6 {[%emt 0:00:00]} 52. Ke5 {[%emt 0:00:00]} Rc6 {[%emt 0:00:
00]} 53. Kd5 {[%emt 0:00:14]} 1/2-1/2

[Event "Gibraltar Masters 18th"]
[Site "Gibraltar"]
[Date "2020.01.22"]
[Round "2.3"]
[White "Wang, Hao"]
[Black "Petrov, Martin"]
[Result "1/2-1/2"]
[ECO "B90"]
[WhiteElo "2758"]
[BlackElo "2504"]
[PlyCount "119"]
[EventDate "2020.01.21"]
[EventType "swiss"]
[EventRounds "10"]
[EventCountry "GGB"]
[SourceTitle "BritBase"]
[Source "John Saunders"]
[SourceDate "2021.06.05"]
[SourceVersion "1"]
[SourceVersionDate "2021.06.05"]
[SourceQuality "1"]
[TimeControl "40/100:0"]
[WhiteClock "0:37:43"]
[BlackClock "0:13:02"]

1. e4 {[%emt 0:00:00]} c5 {[%emt 0:00:00]} 2. Nf3 {[%emt 0:00:00]} d6 {[%emt 0:
00:00]} 3. d4 {[%emt 0:00:00]} cxd4 {[%emt 0:00:00]} 4. Nxd4 {[%emt 0:00:00]}
Nf6 {[%emt 0:00:00]} 5. Nc3 {[%emt 0:00:00]} a6 {[%emt 0:00:00]} 6. Be3 {
[%emt 0:00:00]} e5 {[%emt 0:00:00]} 7. Nb3 {[%emt 0:00:00]} Be7 {[%emt 0:00:00]
} 8. f3 {[%emt 0:00:00]} Be6 {[%emt 0:00:00]} 9. Qd2 {[%emt 0:00:00]} O-O {
[%emt 0:00:00]} 10. O-O-O {[%emt 0:00:00]} Nbd7 {[%emt 0:00:00]} 11. g4 {
[%emt 0:00:00]} b5 {[%emt 0:00:00]} 12. g5 {[%emt 0:00:00]} b4 {[%emt 0:00:00]}
13. Na4 {[%emt 0:00:00]} Nh5 {[%emt 0:00:00]} 14. Qxb4 {[%emt 0:00:00]} d5 {
[%emt 0:00:00]} 15. Qa5 {[%emt 0:00:00]} Bxg5 {[%emt 0:00:00]} 16. Bxg5 {
[%emt 0:00:00]} Qxg5+ {[%emt 0:00:00]} 17. Kb1 {[%emt 0:00:00]} dxe4 {[%emt 0:
00:00]} 18. Nd4 {[%emt 0:00:00]} Qd8 {[%emt 0:00:00]} 19. Qxd8 {[%emt 0:00:00]}
Rfxd8 {[%emt 0:00:00]} 20. Nxe6 {[%emt 0:00:00]} fxe6 {[%emt 0:00:00]} 21. Bc4
{[%emt 0:00:00]} Ndf6 {[%emt 0:00:00]} 22. fxe4 {[%emt 0:00:00]} Nxe4 {[%emt 0:
00:00]} 23. Rxd8+ {[%emt 0:00:00]} Rxd8 {[%emt 0:00:00]} 24. Bxa6 {[%emt 0:00:
00]} Nf4 {[%emt 0:00:00]} 25. b3 {[%emt 0:00:00]} g5 {[%emt 0:00:00]} 26. Bb7 {
[%emt 0:00:00]} Nd6 {[%emt 0:00:00]} 27. Nc5 {[%emt 0:00:00]} g4 {[%emt 0:00:
00]} 28. a4 {[%emt 0:00:00]} Rb8 {[%emt 0:00:00]} 29. Ba6 {[%emt 0:00:00]} Kf7
{[%emt 0:00:00]} 30. Re1 {[%emt 0:00:00]} h5 {[%emt 0:00:00]} 31. Nd7 {[%emt 0:
00:00]} Rg8 {[%emt 0:00:00]} 32. Rf1 {[%emt 0:00:00]} Rg5 {[%emt 0:00:00]} 33.
Bd3 {[%emt 0:00:00]} Ke7 {[%emt 0:00:00]} 34. Nxe5 {[%emt 0:00:00]} Nxd3 {
[%emt 0:00:00]} 35. Nxd3 {[%emt 0:00:00]} e5 {[%emt 0:00:00]} 36. Kc1 {[%emt 0:
00:00]} e4 {[%emt 0:00:00]} 37. Nf4 {[%emt 0:00:00]} h4 {[%emt 0:00:17]} 38.
Kd2 {[%emt 0:00:00]} Kd7 {[%emt 0:00:00]} 39. Ke2 {[%emt 0:00:00]} Kc6 {
[%emt 0:00:00]} 40. Ra1 {[%emt 0:00:49]} g3 {[%emt 0:00:51]} 41. h3 {[%emt 0:
00:00]} Nf5 {[%emt 0:00:00]} 42. Rd1 {[%emt 0:00:00]} g2 {[%emt 0:00:00]} 43.
Rg1 {[%emt 0:00:00]} Nd4+ {[%emt 0:00:00]} 44. Ke3 {[%emt 0:00:00]} Nxc2+ {
[%emt 0:00:00]} 45. Kxe4 {[%emt 0:00:00]} Rg3 {[%emt 0:00:00]} 46. Rxg2 {
[%emt 0:00:00]} Re3+ {[%emt 0:00:00]} 47. Kf5 {[%emt 0:00:00]} Nd4+ {[%emt 0:
00:00]} 48. Kf6 {[%emt 0:00:00]} Rxb3 {[%emt 0:00:00]} 49. Rg4 {[%emt 0:00:00]}
Nf3 {[%emt 0:00:00]} 50. Ne6 {[%emt 0:00:00]} Kb6 {[%emt 0:00:00]} 51. Kf5 {
[%emt 0:00:00]} Ka5 {[%emt 0:00:00]} 52. Rg8 {[%emt 0:00:00]} Ra3 {[%emt 0:00:
00]} 53. Kg4 {[%emt 0:00:00]} Ng1 {[%emt 0:00:00]} 54. Ra8+ {[%emt 0:00:00]}
Kb4 {[%emt 0:00:00]} 55. Nf4 {[%emt 0:00:00]} Rxa4 {[%emt 0:00:00]} 56. Rf8 {
[%emt 0:00:00]} Kc5 {[%emt 0:00:00]} 57. Kxh4 {[%emt 0:00:00]} Ne2 {[%emt 0:00:
00]} 58. Kg5 {[%emt 0:00:00]} Nxf4 {[%emt 0:00:00]} 59. Rxf4 {[%emt 0:00:00]}
Rxf4 {[%emt 0:00:00]} 60. Kxf4 {[%emt 0:00:00]} 1/2-1/2

[Event "Gibraltar Masters 18th"]
[Site "Gibraltar"]
[Date "2020.01.22"]
[Round "2.4"]
[White "Barbosa, Evandro Amorim"]
[Black "Topalov, Veselin"]
[Result "1/2-1/2"]
[ECO "C47"]
[WhiteElo "2501"]
[BlackElo "2738"]
[PlyCount "62"]
[EventDate "2020.01.21"]
[EventType "swiss"]
[EventRounds "10"]
[EventCountry "GGB"]
[SourceTitle "BritBase"]
[Source "John Saunders"]
[SourceDate "2021.06.05"]
[SourceVersion "1"]
[SourceVersionDate "2021.06.05"]
[SourceQuality "1"]
[TimeControl "40/100:0"]
[WhiteClock "0:12:10"]
[BlackClock "0:45:09"]

1. e4 {[%emt 0:00:00]} e5 {[%emt 0:00:00]} 2. Nf3 {[%emt 0:00:00]} Nc6 {
[%emt 0:00:00]} 3. Nc3 {[%emt 0:00:00]} Nf6 {[%emt 0:00:00]} 4. d4 {[%emt 0:00:
00]} exd4 {[%emt 0:00:00]} 5. Nxd4 {[%emt 0:00:00]} Bb4 {[%emt 0:00:00]} 6.
Nxc6 {[%emt 0:00:00]} bxc6 {[%emt 0:00:00]} 7. Bd3 {[%emt 0:00:00]} O-O {
[%emt 0:00:00]} 8. O-O {[%emt 0:00:00]} d5 {[%emt 0:00:00]} 9. exd5 {[%emt 0:
00:00]} cxd5 {[%emt 0:00:00]} 10. Bg5 {[%emt 0:00:00]} c6 {[%emt 0:00:00]} 11.
Qf3 {[%emt 0:00:00]} Rb8 {[%emt 0:00:00]} 12. Ne2 {[%emt 0:00:00]} Bg4 {
[%emt 0:00:00]} 13. Bxf6 {[%emt 0:00:00]} Bxf3 {[%emt 0:00:00]} 14. Bxd8 {
[%emt 0:00:00]} Bxe2 {[%emt 0:00:00]} 15. Bxe2 {[%emt 0:00:00]} Rfxd8 {[%emt 0:
00:00]} 16. Rad1 {[%emt 0:00:00]} a5 {[%emt 0:00:00]} 17. Rd3 {[%emt 0:00:00]}
Re8 {[%emt 0:00:00]} 18. Bf3 {[%emt 0:00:00]} g6 {[%emt 0:00:00]} 19. g3 {
[%emt 0:00:00]} Re6 {[%emt 0:00:00]} 20. Kg2 {[%emt 0:00:00]} Kg7 {[%emt 0:00:
00]} 21. Rc1 {[%emt 0:00:00]} Bc5 {[%emt 0:00:00]} 22. b3 {[%emt 0:00:00]} h5 {
[%emt 0:00:00]} 23. h4 {[%emt 0:00:00]} a4 {[%emt 0:00:00]} 24. Rd2 {[%emt 0:
00:00]} Kf6 {[%emt 0:00:00]} 25. c4 {[%emt 0:00:00]} d4 {[%emt 0:00:00]} 26.
bxa4 {[%emt 0:00:00]} Ke7 {[%emt 0:00:00]} 27. Rcc2 {[%emt 0:00:00]} Ra8 {
[%emt 0:00:00]} 28. Rb2 {[%emt 0:00:00]} Rxa4 {[%emt 0:00:00]} 29. Rb7+ {
[%emt 0:00:00]} Kf6 {[%emt 0:00:00]} 30. Rc7 {[%emt 0:00:00]} Rxc4 {[%emt 0:00:
00]} 31. Rxc6 {[%emt 0:00:00]} Rxc6 {[%emt 0:00:00]} 1/2-1/2

[Event "Gibraltar Masters 18th"]
[Site "Gibraltar"]
[Date "2020.01.22"]
[Round "2.5"]
[White "Navara, David"]
[Black "Lei, Tingjie"]
[Result "1/2-1/2"]
[ECO "C54"]
[WhiteElo "2717"]
[BlackElo "2493"]
[PlyCount "80"]
[EventDate "2020.01.21"]
[EventType "swiss"]
[EventRounds "10"]
[EventCountry "GGB"]
[SourceTitle "BritBase"]
[Source "John Saunders"]
[SourceDate "2021.06.05"]
[SourceVersion "1"]
[SourceVersionDate "2021.06.05"]
[SourceQuality "1"]
[TimeControl "40/100:0"]
[WhiteClock "0:24:11"]
[BlackClock "0:04:29"]

1. e4 {[%emt 0:00:00]} e5 {[%emt 0:00:00]} 2. Bc4 {[%emt 0:00:00]} Nf6 {
[%emt 0:00:00]} 3. d3 {[%emt 0:00:00]} Nc6 {[%emt 0:00:00]} 4. Nf3 {[%emt 0:00:
00]} Bc5 {[%emt 0:00:00]} 5. c3 {[%emt 0:00:00]} h6 {[%emt 0:00:00]} 6. b4 {
[%emt 0:00:00]} Bb6 {[%emt 0:00:00]} 7. a4 {[%emt 0:00:00]} a6 {[%emt 0:00:00]}
8. O-O {[%emt 0:00:00]} O-O {[%emt 0:00:00]} 9. h3 {[%emt 0:00:00]} d6 {
[%emt 0:00:00]} 10. Na3 {[%emt 0:00:00]} Ne7 {[%emt 0:00:00]} 11. Bb3 {[%emt 0:
00:00]} c6 {[%emt 0:00:00]} 12. Re1 {[%emt 0:00:00]} Ng6 {[%emt 0:00:00]} 13.
Be3 {[%emt 0:00:00]} Bc7 {[%emt 0:00:00]} 14. c4 {[%emt 0:00:00]} d5 {[%emt 0:
00:00]} 15. cxd5 {[%emt 0:00:00]} cxd5 {[%emt 0:00:00]} 16. exd5 {[%emt 0:00:
00]} Nxd5 {[%emt 0:00:00]} 17. Bxd5 {[%emt 0:00:00]} Qxd5 {[%emt 0:00:00]} 18.
Rc1 {[%emt 0:00:00]} Qd8 {[%emt 0:00:00]} 19. Qc2 {[%emt 0:00:00]} Bd6 {
[%emt 0:00:00]} 20. Qb2 {[%emt 0:00:00]} a5 {[%emt 0:00:00]} 21. bxa5 {[%emt 0:
00:00]} Bxa3 {[%emt 0:00:00]} 22. Qxa3 {[%emt 0:00:00]} Qxa5 {[%emt 0:00:00]}
23. Bc5 {[%emt 0:00:00]} Re8 {[%emt 0:00:00]} 24. Qb2 {[%emt 0:00:00]} Bf5 {
[%emt 0:00:00]} 25. Nxe5 {[%emt 0:00:00]} Nxe5 {[%emt 0:00:00]} 26. Rxe5 {
[%emt 0:00:00]} Rxe5 {[%emt 0:00:00]} 27. Qxe5 {[%emt 0:00:00]} Bxd3 {[%emt 0:
00:00]} 28. Qd5 {[%emt 0:00:00]} b6 {[%emt 0:00:00]} 29. Qxd3 {[%emt 0:00:00]}
bxc5 {[%emt 0:00:00]} 30. Rc4 {[%emt 0:00:00]} Re8 {[%emt 0:00:00]} 31. Qf3 {
[%emt 0:00:00]} Re6 {[%emt 0:00:00]} 32. g3 {[%emt 0:00:00]} Re1+ {[%emt 0:00:
00]} 33. Kh2 {[%emt 0:00:00]} Re5 {[%emt 0:00:00]} 34. h4 {[%emt 0:00:00]} h5 {
[%emt 0:00:00]} 35. Rf4 {[%emt 0:00:00]} Qc7 {[%emt 0:00:00]} 36. a5 {[%emt 0:
00:00]} c4 {[%emt 0:00:00]} 37. a6 {[%emt 0:00:00]} c3 {[%emt 0:00:00]} 38. Ra4
{[%emt 0:00:00]} Qa7 {[%emt 0:00:00]} 39. Ra2 {[%emt 0:00:00]} c2 {[%emt 0:00:
00]} 40. Rxc2 {[%emt 0:00:00]} Qxa6 {[%emt 0:00:00]} 1/2-1/2

[Event "Gibraltar Masters 18th"]
[Site "Gibraltar"]
[Date "2020.01.22"]
[Round "2.6"]
[White "Tan, Zhongyi"]
[Black "Le, Quang Liem"]
[Result "0-1"]
[ECO "E36"]
[WhiteElo "2493"]
[BlackElo "2713"]
[PlyCount "134"]
[EventDate "2020.01.21"]
[EventType "swiss"]
[EventRounds "10"]
[EventCountry "GGB"]
[SourceTitle "BritBase"]
[Source "John Saunders"]
[SourceDate "2021.06.05"]
[SourceVersion "1"]
[SourceVersionDate "2021.06.05"]
[SourceQuality "1"]
[TimeControl "40/100:0"]
[WhiteClock "0:09:00"]
[BlackClock "0:05:24"]

1. d4 {[%emt 0:00:00]} Nf6 {[%emt 0:00:00]} 2. c4 {[%emt 0:00:00]} e6 {[%emt 0:
00:00]} 3. Nc3 {[%emt 0:00:00]} Bb4 {[%emt 0:00:00]} 4. Qc2 {[%emt 0:00:00]} d5
{[%emt 0:00:00]} 5. a3 {[%emt 0:00:00]} Bxc3+ {[%emt 0:00:00]} 6. Qxc3 {
[%emt 0:00:00]} O-O {[%emt 0:00:00]} 7. Bg5 {[%emt 0:00:00]} c5 {[%emt 0:00:00]
} 8. e3 {[%emt 0:00:00]} cxd4 {[%emt 0:00:00]} 9. Qxd4 {[%emt 0:00:00]} Nc6 {
[%emt 0:00:00]} 10. Qc3 {[%emt 0:00:00]} d4 {[%emt 0:00:00]} 11. exd4 {[%emt 0:
00:00]} Qxd4 {[%emt 0:00:00]} 12. Ne2 {[%emt 0:00:00]} Qe5 {[%emt 0:00:00]} 13.
Bxf6 {[%emt 0:00:00]} Qxf6 {[%emt 0:00:00]} 14. Qxf6 {[%emt 0:00:00]} gxf6 {
[%emt 0:00:00]} 15. O-O-O {[%emt 0:00:00]} e5 {[%emt 0:00:00]} 16. Ng3 {
[%emt 0:00:00]} Be6 {[%emt 0:00:00]} 17. f4 {[%emt 0:00:00]} Rfd8 {[%emt 0:00:
00]} 18. Rxd8+ {[%emt 0:00:00]} Rxd8 {[%emt 0:00:00]} 19. Nh5 {[%emt 0:00:00]}
Rd4 {[%emt 0:00:00]} 20. Nxf6+ {[%emt 0:00:00]} Kg7 {[%emt 0:00:00]} 21. fxe5 {
[%emt 0:00:00]} Nxe5 {[%emt 0:00:00]} 22. Nd5 {[%emt 0:00:00]} Nxc4 {[%emt 0:
00:00]} 23. Bxc4 {[%emt 0:00:00]} Rxc4+ {[%emt 0:00:00]} 24. Nc3 {[%emt 0:00:
00]} Bd5 {[%emt 0:00:00]} 25. Rg1 {[%emt 0:00:00]} Bc6 {[%emt 0:00:00]} 26. g3
{[%emt 0:00:00]} f5 {[%emt 0:00:00]} 27. Kd2 {[%emt 0:00:00]} Kf6 {[%emt 0:00:
00]} 28. Kd3 {[%emt 0:00:00]} Rg4 {[%emt 0:00:00]} 29. Rf1 {[%emt 0:00:00]} Kg5
{[%emt 0:00:00]} 30. Ke3 {[%emt 0:00:00]} h5 {[%emt 0:00:00]} 31. Rf2 {[%emt 0:
00:00]} h4 {[%emt 0:00:00]} 32. Ne2 {[%emt 0:00:00]} hxg3 {[%emt 0:00:00]} 33.
hxg3 {[%emt 0:00:00]} Re4+ {[%emt 0:00:00]} 34. Kd2 {[%emt 0:00:00]} Kg4 {
[%emt 0:00:00]} 35. Nc3 {[%emt 0:00:00]} Re5 {[%emt 0:00:00]} 36. Ne2 {[%emt 0:
00:00]} Bf3 {[%emt 0:00:00]} 37. Nd4 {[%emt 0:00:00]} Be4 {[%emt 0:00:00]} 38.
Rf4+ {[%emt 0:00:00]} Kxg3 {[%emt 0:00:00]} 39. Ne2+ {[%emt 0:00:00]} Kg2 {
[%emt 0:00:00]} 40. Nd4 {[%emt 0:00:00]} a5 {[%emt 0:00:00]} 41. b3 {[%emt 0:
00:00]} Bb1 {[%emt 0:00:00]} 42. Ne2 {[%emt 0:00:00]} Be4 {[%emt 0:00:00]} 43.
Nd4 {[%emt 0:00:00]} Rc5 {[%emt 0:00:00]} 44. Ke1 {[%emt 0:00:00]} Rd5 {
[%emt 0:00:00]} 45. Rf2+ {[%emt 0:00:00]} Kg3 {[%emt 0:00:00]} 46. Ne2+ {
[%emt 0:00:00]} Kg4 {[%emt 0:00:00]} 47. Rf1 {[%emt 0:00:00]} Rd3 {[%emt 0:00:
00]} 48. Rg1+ {[%emt 0:00:00]} Kh4 {[%emt 0:00:00]} 49. Nc1 {[%emt 0:00:00]}
Rf3 {[%emt 0:00:00]} 50. Rg8 {[%emt 0:00:00]} Rc3 {[%emt 0:00:00]} 51. Kd2 {
[%emt 0:00:00]} Rc2+ {[%emt 0:00:00]} 52. Kd1 {[%emt 0:00:00]} Rc5 {[%emt 0:00:
00]} 53. Ne2 {[%emt 0:00:00]} Bf3 {[%emt 0:00:00]} 54. Kd2 {[%emt 0:00:00]}
Bxe2 {[%emt 0:00:00]} 55. Kxe2 {[%emt 0:00:00]} Rc3 {[%emt 0:00:00]} 56. b4 {
[%emt 0:00:00]} Rxa3 {[%emt 0:00:00]} 57. bxa5 {[%emt 0:00:00]} Rxa5 {[%emt 0:
00:00]} 58. Kf3 {[%emt 0:00:00]} Ra4 {[%emt 0:00:00]} 59. Rg1 {[%emt 0:00:00]}
Rb4 {[%emt 0:00:00]} 60. Rg7 {[%emt 0:00:00]} Kh5 {[%emt 0:00:00]} 61. Rg8 {
[%emt 0:00:00]} b5 {[%emt 0:00:00]} 62. Rh8+ {[%emt 0:00:00]} Kg5 {[%emt 0:00:
00]} 63. Rg8+ {[%emt 0:00:00]} Kf6 {[%emt 0:00:00]} 64. Rf8+ {[%emt 0:00:00]}
Ke5 {[%emt 0:00:00]} 65. Re8+ {[%emt 0:00:00]} Kd6 {[%emt 0:00:00]} 66. Rf8 {
[%emt 0:00:00]} f4 {[%emt 0:00:00]} 67. Rf5 {[%emt 0:00:00]} Kc6 {[%emt 0:00:
00]} 0-1